bitfinex-derivatives/quotes_BTCF0:USTF0_20230702
["timestamp","ask_amount","ask_price","bid_price","bid_amount"]
[1688311682217,0.08855545,30447.0,30446.0,0.3685662]
[1688311682524,0.10678514,30447.0,30446.0,0.3685662]
[1688311682715,0.10678514,30447.0,30446.0,0.0027602]
[1688311682910,0.10678514,30447.0,30444.0,0.396069]
[1688311683116,0.380507,30445.0,30444.0,0.396069]
[1688311685017,0.380507,30445.0,30444.0,0.4604079]
[1688311685213,0.019707,30445.0,30444.0,0.4604079]
[1688311685435,0.06617366,30450.0,30444.0,0.4604079]
[1688311685436,0.06617366,30450.0,30446.0,0.3452]
[1688311685720,0.00049266,30450.0,30449.0,0.724505]
[1688311685914,0.00049266,30450.0,30449.0,0.77890051]
[1688311686323,0.00049266,30450.0,30449.0,0.41810051]
[1688311686725,0.02019666,30450.0,30449.0,0.363705]
[1688311688316,0.02019666,30450.0,30449.0,0.41810051]
[1688311689134,0.05,30451.0,30449.0,1.77890051]
[1688311689425,0.019701,30454.0,30452.0,1.0]
[1688311689624,0.0197,30457.0,30453.0,0.726602]
[1688311689828,0.0197,30457.0,30456.0,0.724499]
[1688311690019,0.0197,30457.0,30456.0,0.77889451]
[1688311690423,0.0197,30457.0,30456.0,0.724499]
[1688311690634,0.0197,30457.0,30456.0,0.77889451]
[1688311691322,0.02320166,30457.0,30456.0,0.77889451]
[1688311691631,0.00512641,30457.0,30456.0,1.82889451]
[1688311691927,0.00048928,30460.0,30458.0,0.019699]
[1688311692151,0.019695,30464.0,30461.0,1.0]
[1688311692320,0.019695,30464.0,30463.0,0.366495]
[1688311693127,0.019695,30464.0,30463.0,0.3468]
[1688311693324,0.019695,30464.0,30460.0,0.05049239]
[1688311693325,0.019695,30464.0,30460.0,0.07018939]
[1688311693722,0.019696,30462.0,30460.0,0.07018939]
[1688311694232,0.01884945,30461.0,30460.0,0.00049239]
[1688311694432,0.03854645,30461.0,30460.0,0.00049239]
[1688311694832,0.05677614,30461.0,30460.0,0.00049239]
[1688311695231,0.019697,30461.0,30460.0,0.36698939]
[1688311697918,0.049241,30463.0,30460.0,0.36698939]
[1688311698124,0.049241,30463.0,30462.0,0.3461]
[1688311698327,0.059086,30467.0,30464.0,0.05]
[1688311698536,0.059072,30471.0,30466.0,0.6936]
[1688311698823,0.06563,30474.0,30470.0,0.36649]
[1688311699024,0.06563,30474.0,30473.0,0.7076]
[1688311699530,0.06563,30474.0,30473.0,0.3468]
[1688311700032,0.0657,30471.0,30469.0,0.00049226]
[1688311700243,0.733891,30470.0,30469.0,0.00049226]
[1688311700431,0.74107552,30470.0,30463.0,0.3468]
[1688311700624,0.3608,30467.0,30463.0,0.3468]
[1688311700819,0.3608,30464.0,30463.0,0.3468]
[1688311701037,0.380495,30464.0,30463.0,0.3468]
[1688311701340,0.39872469,30464.0,30463.0,0.3468]
[1688311701637,0.41757414,30464.0,30463.0,0.3468]
[1688311702731,0.41757414,30464.0,30462.0,0.3461]
[1688311702932,0.03707914,30463.0,30462.0,0.3461]
[1688311703129,0.05677514,30463.0,30462.0,0.3461]
[1688311703630,0.04452569,30463.0,30462.0,0.3461]
[1688311703828,0.0723,30462.0,30460.0,0.00049239]
[1688311704048,0.41757614,30461.0,30460.0,0.00049239]
[1688311705955,0.39872669,30461.0,30460.0,0.00049239]
[1688311706124,0.380497,30461.0,30460.0,0.34729239]
[1688311706322,0.400497,30461.0,30460.0,0.34729239]
[1688311706537,0.430497,30461.0,30460.0,0.34729239]
[1688311706835,0.019695,30465.0,30463.0,1.0]
[1688311707145,0.00049188,30467.0,30464.0,0.710595]
[1688311707337,0.00049188,30467.0,30466.0,0.019694]
[1688311707723,0.02018488,30467.0,30466.0,0.019694]
[1688311707928,0.02018488,30467.0,30460.0,0.42038439]
[1688311708233,0.3608,30466.0,30460.0,0.42038439]
[1688311708438,0.019694,30465.0,30460.0,0.42038439]
[1688311708728,0.3608,30463.0,30460.0,0.05958439]
[1688311709028,0.04452569,30462.0,30460.0,0.07058439]
[1688311709229,0.04514545,30462.0,30460.0,0.07058439]
[1688311709430,0.08069151,30462.0,30460.0,0.05958439]
[1688311709623,0.019696,30462.0,30460.0,0.05958439]
[1688311710022,0.05677514,30462.0,30461.0,0.3467]
[1688311710227,0.03854545,30462.0,30461.0,0.366397]
[1688311710428,0.09294096,30462.0,30461.0,0.366397]
[1688311710628,0.11117065,30462.0,30461.0,0.366397]
[1688311710940,0.03854545,30462.0,30461.0,0.366397]
[1688311711233,0.05677514,30462.0,30461.0,0.377397]
[1688311711639,0.019696,30462.0,30461.0,0.377397]
[1688311712032,0.019696,30462.0,30461.0,0.030697]
[1688311712435,0.03854545,30462.0,30461.0,0.030697]
[1688311712634,0.05677514,30462.0,30461.0,0.030697]
[1688311713127,0.03854545,30462.0,30461.0,0.030697]
[1688311713341,0.019696,30462.0,30461.0,0.391497]
[1688311713533,0.059088,30464.0,30461.0,0.391497]
[1688311714035,0.059088,30464.0,30461.0,0.380497]
[1688311714535,0.019694,30465.0,30461.0,0.391497]
[1688311714742,0.019694,30465.0,30464.0,0.3468]
[1688311714927,0.019694,30465.0,30464.0,0.366495]
[1688311715331,0.02358703,30465.0,30464.0,0.019695]
[1688311715640,0.02358703,30465.0,30464.0,0.030695]
[1688311719947,0.04181672,30465.0,30464.0,0.030695]
[1688311720148,0.02358703,30465.0,30464.0,0.376795]
[1688311720549,0.00389303,30465.0,30464.0,0.376795]
[1688311720748,0.00389303,30465.0,30464.0,0.737595]
[1688311720944,0.00049188,30467.0,30464.0,0.737595]
[1688311721146,0.00395425,30465.0,30464.0,0.737595]
[1688311721344,0.00049188,30467.0,30464.0,1.737595]
[1688311721551,0.014,30465.0,30464.0,1.726595]
[1688311722057,0.02055682,30465.0,30464.0,1.737595]
[1688311722248,0.0238143,30465.0,30464.0,1.737595]
[1688311722450,0.0435083,30465.0,30464.0,0.030695]
[1688311722855,0.04025082,30465.0,30464.0,0.011]
[1688311723156,0.07732996,30465.0,30464.0,0.011]
[1688311725368,0.05910027,30465.0,30464.0,0.011]
[1688311725867,0.07732996,30465.0,30464.0,0.011]
[1688311726279,0.42272996,30465.0,30464.0,0.011]
[1688311728553,0.42272996,30465.0,30460.0,0.00049239]
[1688311728759,0.019696,30463.0,30460.0,0.00049239]
[1688311729061,0.019696,30463.0,30460.0,0.01149239]
[1688311729263,0.03707914,30462.0,30460.0,0.01149239]
[1688311729467,0.019697,30461.0,30460.0,0.00049239]
[1688311729771,0.059091,30463.0,30460.0,0.36699039]
[1688311729973,0.059091,30463.0,30462.0,0.3468]
[1688311730162,0.059091,30463.0,30462.0,0.366496]
[1688311730469,0.06196705,30463.0,30462.0,0.366496]
[1688311731067,0.06196705,30463.0,30462.0,0.44274696]
[1688311732165,0.00287605,30463.0,30462.0,0.44274696]
[1688311732380,0.00049188,30467.0,30462.0,0.44274696]
[1688311732676,0.00049188,30467.0,30466.0,0.366394]
[1688311732871,0.01449188,30467.0,30466.0,0.366394]
[1688311733169,0.01449188,30467.0,30466.0,0.43164496]
[1688311733367,0.32488693,30470.0,30469.0,1.0]
[1688311733672,0.55513197,30473.0,30470.0,0.019691]
[1688311733673,0.065633,30473.0,30470.0,0.019691]
[1688311733859,0.019689,30474.0,30472.0,0.36579]
[1688311734262,0.09705387,30476.0,30472.0,0.36579]
[1688311734472,0.019688,30476.0,30475.0,0.344]
[1688311734772,0.019688,30476.0,30475.0,0.363688]
[1688311734959,0.09705387,30477.0,30475.0,0.363688]
[1688311735159,0.11674087,30477.0,30476.0,0.3468]
[1688311735361,0.11674087,30477.0,30476.0,0.366487]
[1688311735875,0.380487,30477.0,30475.0,0.011]
[1688311736072,0.019688,30475.0,30473.0,0.366489]
[1688311736265,0.03853745,30475.0,30473.0,0.366489]
[1688311736473,0.3608,30474.0,30473.0,0.3468]
[1688311736770,0.3608,30474.0,30473.0,0.011]
[1688311736771,0.74613845,30474.0,30473.0,0.011]
[1688311736960,0.86170411,30474.0,30471.0,0.00049222]
[1688311737164,0.82462497,30474.0,30471.0,0.00049222]
[1688311737362,0.01884945,30473.0,30471.0,0.00049222]
[1688311737659,0.03791969,30472.0,30471.0,0.01149222]
[1688311737863,0.05676914,30472.0,30471.0,0.01149222]
[1688311738061,0.05676914,30472.0,30471.0,0.00049222]
[1688311738766,0.05676914,30472.0,30471.0,0.01149222]
[1688311739571,0.01822969,30472.0,30471.0,0.03118222]
[1688311739767,0.019689,30474.0,30472.0,1.05]
[1688311739971,0.10361651,30476.0,30473.0,0.3468]
[1688311740176,0.019688,30475.0,30474.0,0.3608]
[1688311740371,0.019688,30475.0,30474.0,0.727289]
[1688311740670,0.05906,30478.0,30474.0,0.727289]
[1688311740874,0.05906,30478.0,30476.0,0.3468]
[1688311741067,0.07790945,30478.0,30476.0,0.3468]
[1688311741267,0.05906,30478.0,30476.0,0.3468]
[1688311741675,0.05676614,30477.0,30474.0,0.3461]
[1688311741876,0.47782297,30477.0,30474.0,0.3461]
[1688311742074,0.019688,30475.0,30472.0,0.01969]
[1688311742264,0.019688,30475.0,30474.0,0.3468]
[1688311742665,0.05676714,30475.0,30474.0,0.3468]
[1688311743576,0.12246714,30475.0,30474.0,0.011]
[1688311743783,0.52622397,30475.0,30466.0,0.41233179]
[1688311743965,0.3608,30469.0,30466.0,0.41233179]
[1688311744168,0.3608,30469.0,30466.0,0.06553179]
[1688311744169,0.11776665,30468.0,30466.0,0.06553179]
[1688311744384,0.11776665,30468.0,30464.0,0.09650836]
[1688311744385,0.08068751,30468.0,30464.0,0.06553179]
[1688311744682,0.08068751,30468.0,30462.0,0.41233179]
[1688311744683,0.019695,30464.0,30462.0,0.41233179]
[1688311744875,0.019695,30464.0,30461.0,0.06553179]
[1688311745078,0.3608,30462.0,30461.0,0.06553179]
[1688311745383,0.384933,30462.0,30461.0,0.06553179]
[1688311745875,0.42201214,30462.0,30461.0,0.06553179]
[1688311746266,0.04298245,30462.0,30461.0,0.08522879]
[1688311746669,0.024133,30462.0,30461.0,0.43202879]
[1688311748376,0.024133,30462.0,30461.0,0.366497]
[1688311748377,0.004437,30462.0,30461.0,0.366497]
[1688311748576,0.004437,30462.0,30461.0,0.46300536]
[1688311748781,0.00049224,30466.0,30465.0,0.019694]
[1688311749087,0.00049224,30466.0,30465.0,0.363694]
[1688311751185,0.02018624,30466.0,30465.0,0.363694]
[1688311752481,0.00049224,30466.0,30465.0,0.363694]
[1688311753683,0.26581193,30473.0,30468.0,1.0]
[1688311753881,0.380488,30475.0,30472.0,0.3468]
[1688311754176,0.380488,30475.0,30469.0,0.019692]
[1688311754177,0.019688,30475.0,30474.0,0.366489]
[1688311754581,0.380488,30475.0,30474.0,0.366489]
[1688311756376,0.019688,30475.0,30474.0,0.366489]
[1688311757377,0.03853745,30475.0,30471.0,0.00049221]
[1688311757584,0.3608,30473.0,30471.0,0.00049221]
[1688311757773,0.01969,30472.0,30471.0,0.00049221]
[1688311757973,0.03853945,30472.0,30471.0,0.00049221]
[1688311758178,0.82676914,30472.0,30471.0,0.00049221]
[1688311758378,0.0657,30470.0,30463.0,0.0654721]
[1688311758681,0.019696,30463.0,30462.0,0.4094721]
[1688311758988,0.019696,30463.0,30461.0,0.0912855]
[1688311759181,0.019696,30463.0,30461.0,0.0654721]
[1688311759396,0.04367914,30462.0,30459.0,0.06596452]
[1688311759577,0.380497,30461.0,30459.0,0.06596452]
[1688311759878,0.05677714,30460.0,30459.0,0.06596452]
[1688311760469,0.019698,30460.0,30459.0,0.43236252]
[1688311762786,0.019698,30460.0,30459.0,0.36689042]
[1688311762969,0.019698,30460.0,30459.0,0.08565656]
[1688311763383,0.11117265,30460.0,30459.0,0.08565656]
[1688311763584,0.11117265,30460.0,30459.0,0.06595856]
[1688311763979,0.11117265,30460.0,30459.0,0.00049242]
[1688311764588,0.05677714,30460.0,30459.0,0.00049242]
[1688311765877,0.05677714,30460.0,30459.0,0.06595856]
[1688311766077,0.05677714,30460.0,30459.0,0.00049242]
[1688311767286,0.11117265,30460.0,30459.0,0.00049242]
[1688311767685,0.05677714,30460.0,30459.0,0.00049242]
[1688311769386,0.019698,30460.0,30459.0,0.36699042]
[1688311769885,0.019698,30460.0,30459.0,0.43245656]
[1688311770189,0.019698,30460.0,30459.0,0.36699042]
[1688311771374,0.380498,30460.0,30459.0,0.36699042]
[1688311771686,0.019698,30460.0,30459.0,0.36699042]
[1688311771989,0.019698,30460.0,30459.0,0.02019042]
[1688311772394,0.380498,30460.0,30459.0,0.02019042]
[1688311772582,0.39934745,30460.0,30459.0,0.02019042]
[1688311773490,0.41757714,30460.0,30459.0,0.02019042]
[1688311773685,0.39934745,30460.0,30459.0,0.02019042]
[1688311774388,0.380498,30460.0,30459.0,0.02019042]
[1688311774581,0.39934745,30460.0,30459.0,0.02019042]
[1688311774779,0.60774745,30460.0,30459.0,0.02019042]
[1688311774983,0.62597714,30460.0,30459.0,0.02019042]
[1688311775388,0.60774745,30460.0,30459.0,0.02019042]
[1688311776098,0.019698,30460.0,30459.0,0.23049042]
[1688311776896,0.229298,30460.0,30459.0,0.00049242]
[1688311777286,0.26637714,30460.0,30459.0,0.00049242]
[1688311777890,0.229298,30460.0,30459.0,0.00049242]
[1688311778095,0.24752769,30460.0,30459.0,0.00049242]
[1688311778506,0.00049226,30465.0,30462.0,1.0]
[1688311778695,0.38588362,30472.0,30466.0,1.0]
[1688311778891,0.28854765,30472.0,30471.0,0.2103]
[1688311779194,0.0657,30475.0,30471.0,0.2083]
[1688311779395,0.019687,30476.0,30474.0,0.209]
[1688311779588,0.03853645,30476.0,30474.0,0.209]
[1688311779790,0.03853645,30476.0,30473.0,0.3467]
[1688311780083,0.019687,30476.0,30473.0,0.3467]
[1688311780291,0.059063,30477.0,30473.0,0.366389]
[1688311780490,0.059063,30477.0,30475.0,0.3467]
[1688311781901,0.3608,30476.0,30475.0,0.3467]
[1688311782095,0.380487,30476.0,30475.0,0.3467]
[1688311782592,0.380487,30476.0,30473.0,0.365689]
[1688311783095,0.380487,30476.0,30473.0,0.346]
[1688311783291,0.380487,30476.0,30473.0,0.365689]
[1688311783599,0.019687,30476.0,30473.0,0.365689]
[1688311783801,0.019687,30476.0,30473.0,0.346]
[1688311784098,0.380487,30476.0,30473.0,0.346]
[1688311784291,0.01884945,30475.0,30473.0,0.365689]
[1688311784496,0.380487,30476.0,30473.0,0.365689]
[1688311785004,0.019689,30474.0,30472.0,0.00049221]
[1688311785390,0.01884945,30473.0,30472.0,0.00049221]
[1688311785712,0.727189,30473.0,30466.0,0.12450248]
[1688311785907,0.019692,30469.0,30465.0,0.019694]
[1688311786093,0.019693,30467.0,30465.0,0.019694]
[1688311787003,0.019693,30467.0,30465.0,0.08511448]
[1688311787496,0.059571,30469.0,30465.0,0.08511448]
[1688311787497,0.059571,30469.0,30467.0,0.019693]
[1688311787693,0.059571,30469.0,30468.0,0.366393]
[1688311787891,0.07780069,30469.0,30468.0,0.366393]
[1688311788096,0.059571,30469.0,30468.0,0.019693]
[1688311788494,0.07842045,30469.0,30468.0,0.019693]
[1688311789094,0.07842045,30469.0,30466.0,0.394634]
[1688311789800,0.059571,30469.0,30466.0,0.394634]
[1688311790401,0.00848284,30468.0,30466.0,0.394634]
[1688311790908,0.00848284,30468.0,30467.0,0.7075]
[1688311791199,0.00848284,30468.0,30467.0,0.79261348]
[1688311791406,0.00848284,30468.0,30467.0,0.727193]
[1688311791800,0.00848284,30468.0,30467.0,0.79258103]
[1688311792005,0.019688,30475.0,30470.0,1.0]
[1688311792206,0.019688,30475.0,30472.0,0.3467]
[1688311792508,0.0063617,30474.0,30473.0,0.019689]
[1688311792714,0.0063617,30474.0,30473.0,0.365689]
[1688311792902,0.065623,30478.0,30473.0,0.365689]
[1688311793102,0.065623,30478.0,30477.0,0.3467]
[1688311794306,0.065623,30478.0,30477.0,0.366387]
[1688311795005,0.019686,30479.0,30477.0,0.366387]
[1688311795305,0.019686,30479.0,30478.0,0.3467]
[1688311796104,0.060686,30479.0,30478.0,1.727186]
[1688311796307,0.040686,30479.0,30478.0,1.727186]
[1688311796502,0.021686,30479.0,30478.0,1.727186]
[1688311796891,0.060686,30479.0,30478.0,1.727186]
[1688311797503,0.040686,30479.0,30478.0,1.727186]
[1688311797705,0.040686,30479.0,30478.0,1.7075]
[1688311797911,0.002,30479.0,30478.0,1.7075]
[1688311798103,0.01986449,30484.0,30478.0,2.7075]
[1688311798306,0.01986449,30484.0,30483.0,0.7064]
[1688311799317,0.049197,30490.0,30486.0,1.0]
[1688311799515,0.019678,30491.0,30489.0,0.3467]
[1688311800805,0.3608,30490.0,30486.0,0.3467]
[1688311801008,0.03852845,30489.0,30486.0,0.3467]
[1688311801315,0.019679,30489.0,30486.0,0.3467]
[1688311801502,0.01884945,30488.0,30486.0,0.3467]
[1688311801813,0.01968,30487.0,30486.0,0.3467]
[1688311803111,0.01968,30487.0,30486.0,0.366381]
[1688311803306,0.01968,30487.0,30486.0,1.366381]
[1688311804005,0.01968,30487.0,30486.0,0.3467]
[1688311805018,0.72418,30487.0,30485.0,0.000492]
[1688311805215,0.07407651,30486.0,30485.0,0.000492]
[1688311805413,0.11115565,30486.0,30485.0,0.000492]
[1688311806010,0.10957086,30486.0,30485.0,0.000492]
[1688311806712,0.12780055,30486.0,30485.0,0.000492]
[1688311806909,0.05517535,30486.0,30485.0,0.000492]
[1688311807303,0.0363259,30486.0,30485.0,0.000492]
[1688311808806,0.0363259,30486.0,30485.0,0.020174]
[1688311809006,0.05517535,30486.0,30485.0,0.000492]
[1688311809905,0.07340504,30486.0,30485.0,0.000492]
[1688311810707,0.01884945,30485.0,30479.0,0.02604343]
[1688311810915,0.3467,30480.0,30474.0,1.3608]
[1688311811225,0.3467,30480.0,30471.0,0.3167]
[1688311811226,0.3608,30475.0,30471.0,0.33639]
[1688311811426,0.3437,30473.0,30469.0,1.02684443]
[1688311811611,0.43488551,30472.0,30469.0,1.02684443]
[1688311811921,0.40651698,30472.0,30469.0,1.02684443]
[1688311812111,0.02748729,30472.0,30470.0,0.019691]
[1688311812529,0.05439551,30471.0,30470.0,0.019691]
[1688311812809,0.02748729,30472.0,30471.0,0.0080105]
[1688311812810,0.049227,30472.0,30471.0,0.0080105]
[1688311813017,0.06807645,30472.0,30471.0,0.0080105]
[1688311813412,0.79050614,30472.0,30471.0,0.0080105]
[1688311813608,0.019691,30470.0,30467.0,0.02630006]
[1688311813813,0.380492,30468.0,30467.0,0.02630006]
[1688311814008,0.41757114,30468.0,30467.0,0.02630006]
[1688311814217,0.41757114,30468.0,30461.0,0.3467]
[1688311814218,0.83657114,30468.0,30461.0,0.3467]
[1688311814418,0.019696,30463.0,30460.0,0.02592149]
[1688311814618,0.019696,30463.0,30460.0,0.00018338]
[1688311814619,0.03707914,30462.0,30460.0,0.00018338]
[1688311814825,0.019697,30461.0,30460.0,0.00018338]
[1688311815021,0.049243,30462.0,30461.0,0.03939399]
[1688311815527,0.47416549,30462.0,30461.0,0.03939399]
[1688311815821,0.91021494,30462.0,30460.0,0.00218338]
[1688311816020,0.91021494,30462.0,30454.0,0.06538419]
[1688311816021,0.019698,30460.0,30454.0,0.06538419]
[1688311816213,0.724201,30455.0,30453.0,0.06538419]
[1688311816412,0.724201,30455.0,30450.0,0.12852097]
[1688311816413,0.16837294,30454.0,30451.0,0.06538419]
[1688311816623,0.727203,30452.0,30451.0,0.06538419]
[1688311816929,0.727203,30452.0,30450.0,0.06538419]
[1688311816930,0.76428214,30452.0,30450.0,0.06538419]
[1688311817224,0.019703,30452.0,30451.0,0.00474083]
[1688311817430,0.33544381,30452.0,30451.0,0.00474083]
[1688311817821,0.41841575,30452.0,30451.0,0.00474083]
[1688311818129,0.41841575,30452.0,30450.0,0.06538419]
[1688311818317,0.40103961,30452.0,30451.0,0.00442231]
[1688311819024,0.43811875,30452.0,30451.0,0.00442231]
[1688311819412,0.019704,30450.0,30448.0,0.06587678]
[1688311819617,0.724205,30449.0,30445.0,0.06538419]
[1688311819924,0.725407,30446.0,30445.0,0.06538419]
[1688311820226,0.725407,30446.0,30445.0,0.06516901]
[1688311820526,0.82828614,30446.0,30445.0,0.06516901]
[1688311820724,0.82828614,30446.0,30444.0,0.06516901]
[1688311820917,0.09825663,30445.0,30444.0,0.06516901]
[1688311821215,0.09825663,30445.0,30442.0,0.06566169]
[1688311821418,0.3608,30443.0,30442.0,0.06566169]
[1688311821625,0.724409,30443.0,30440.0,0.09807628]
[1688311821820,0.3449,30441.0,30440.0,0.09807628]
[1688311822119,0.01971,30441.0,30440.0,0.09807628]
[1688311822526,0.03793969,30441.0,30440.0,0.09807628]
[1688311822922,0.05678914,30441.0,30439.0,0.09807628]
[1688311823127,0.37902969,30440.0,30439.0,0.09807628]
[1688311823317,0.39874069,30440.0,30437.0,0.09856903]
[1688311823623,0.019712,30438.0,30437.0,0.09856903]
[1688311823816,0.3608,30440.0,30438.0,0.03587895]
[1688311824016,0.03707914,30439.0,30438.0,0.13395523]
[1688311824214,0.05962077,30443.0,30442.0,1.0]
[1688311824422,0.05962077,30443.0,30442.0,1.3467]
[1688311824630,0.05962077,30443.0,30442.0,1.36554945]
[1688311824941,0.05962077,30443.0,30442.0,1.38377914]
[1688311825226,0.05962077,30443.0,30439.0,0.346]
[1688311825431,0.05962077,30443.0,30438.0,0.03587895]
[1688311825432,0.01971,30441.0,30438.0,0.03587895]
[1688311825928,0.05678914,30441.0,30438.0,0.03587895]
[1688311826244,0.01971,30441.0,30440.0,0.3454]
[1688311826529,0.01971,30441.0,30440.0,0.01822969]
[1688311826745,0.01971,30441.0,30438.0,1.03587895]
[1688311827027,0.019711,30439.0,30438.0,1.0547284]
[1688311827227,0.019711,30439.0,30438.0,1.41895809]
[1688311827434,0.019711,30439.0,30438.0,1.43867009]
[1688311827921,0.42042077,30443.0,30438.0,1.79947009]
[1688311828249,0.42042077,30443.0,30442.0,0.3467]
[1688311828250,0.05962077,30443.0,30442.0,0.3467]
[1688311828433,0.05962077,30443.0,30442.0,0.366409]
[1688311828729,0.05962077,30443.0,30442.0,0.40348814]
[1688311829124,0.05962077,30443.0,30442.0,0.36554945]
[1688311829728,0.40452077,30443.0,30438.0,1.05577522]
[1688311829933,0.3608,30440.0,30438.0,0.03606322]
[1688311830261,0.38186045,30439.0,30438.0,0.03606322]
[1688311830439,0.46589014,30439.0,30438.0,0.03606322]
[1688311830640,0.01884945,30438.0,30435.0,0.02613913]
[1688311830850,0.01884945,30438.0,30429.0,1.366417]
[1688311830851,0.019714,30435.0,30432.0,0.3456]
[1688311831136,0.03856345,30435.0,30432.0,0.3456]
[1688311831330,0.019714,30435.0,30433.0,0.01457477]
[1688311831928,0.019714,30435.0,30434.0,0.36492969]
[1688311832324,0.019714,30435.0,30434.0,0.37949351]
[1688311832526,0.05963486,30437.0,30434.0,0.36064406]
[1688311832827,0.019714,30435.0,30434.0,0.01394406]
[1688311833026,0.019714,30435.0,30434.0,0.03217375]
[1688311833225,0.019714,30435.0,30434.0,0.7771372]
[1688311833553,0.00049286,30437.0,30436.0,1.0]
[1688311833747,0.3608,30444.0,30436.0,1.0]
[1688311833748,0.01971,30441.0,30437.0,1.0]
[1688311833943,0.01971,30441.0,30439.0,0.3467]
[1688311834334,0.01971,30441.0,30440.0,0.01051731]
[1688311834627,0.01971,30441.0,30440.0,0.028747]
[1688311834843,0.01971,30441.0,30440.0,0.06730745]
[1688311835158,0.049273,30443.0,30440.0,0.35721731]
[1688311835337,0.01971,30441.0,30440.0,0.01051731]
[1688311835723,0.01971,30441.0,30440.0,0.028747]
[1688311835961,0.00049275,30444.0,30441.0,1.4310145]
[1688311836160,0.89159275,30449.0,30441.0,1.4310145]
[1688311836161,0.019706,30448.0,30447.0,0.019706]
[1688311836347,0.019706,30448.0,30447.0,0.727206]
[1688311836555,0.019706,30448.0,30447.0,0.3910807]
[1688311836728,0.019706,30448.0,30447.0,0.40931039]
[1688311836940,0.019706,30448.0,30447.0,0.3713747]
[1688311837436,0.019706,30448.0,30447.0,0.35252525]
[1688311837835,0.019706,30448.0,30447.0,0.00582525]
[1688311838040,0.380506,30448.0,30447.0,0.00582525]
[1688311838231,0.019706,30448.0,30446.0,0.03855545]
[1688311838531,0.019706,30448.0,30447.0,0.36492969]
[1688311838736,0.019706,30448.0,30447.0,0.40348514]
[1688311840939,0.019706,30448.0,30445.0,1.3467]
[1688311841139,0.019706,30448.0,30445.0,1.36554945]
[1688311841443,0.019706,30448.0,30446.0,0.01822969]
[1688311841647,0.019706,30448.0,30447.0,0.01884945]
[1688311842038,0.05678514,30448.0,30447.0,0.019706]
[1688311842248,0.05678514,30448.0,30445.0,1.3467]
[1688311842450,0.019706,30448.0,30445.0,1.366407]
[1688311842659,0.426484,30449.0,30447.0,0.346]
[1688311842866,0.019706,30448.0,30446.0,0.380506]
[1688311843046,0.019706,30448.0,30447.0,0.38393569]
[1688311843466,0.00049264,30451.0,30449.0,2.0]
[1688311843667,0.00049264,30451.0,30450.0,0.7794252]
[1688311843846,0.059095,30460.0,30453.0,2.0]
[1688311844176,0.01988038,30461.0,30459.0,0.365298]
[1688311844371,0.01988038,30461.0,30460.0,0.01822969]
[1688311844648,0.01988038,30461.0,30460.0,0.03707914]
[1688311845037,0.02677836,30461.0,30460.0,0.03707914]
[1688311845243,0.01988038,30461.0,30460.0,0.03707914]
[1688311845447,0.02716623,30461.0,30460.0,0.03707914]
[1688311845746,0.42694544,30464.0,30462.0,2.0]
[1688311845943,0.019693,30467.0,30463.0,0.40347514]
[1688311846278,0.019693,30467.0,30466.0,1.366394]
[1688311846579,0.05906,30478.0,30475.0,1.0]
[1688311846774,0.07790945,30478.0,30476.0,0.3467]
[1688311847381,0.03884945,30478.0,30477.0,0.3467]
[1688311847564,0.039,30478.0,30477.0,0.36492969]
[1688311847762,0.019,30478.0,30477.0,1.38461669]
[1688311847961,0.0359894,30478.0,30477.0,1.38461669]
[1688311848160,0.0359894,30478.0,30477.0,1.40346614]
[1688311848161,0.0169894,30478.0,30477.0,1.40346614]
[1688311848540,0.00049217,30480.0,30477.0,1.40346614]
[1688311848734,0.00049217,30480.0,30479.0,0.3467]
[1688311849151,0.00049217,30480.0,30479.0,0.36492969]
[1688311849353,0.38097717,30480.0,30479.0,0.3467]
[1688311849536,0.38097717,30480.0,30477.0,1.0]
[1688311849848,0.01884945,30479.0,30478.0,0.3467]
[1688311850060,0.00049217,30480.0,30478.0,0.366386]
[1688311850264,0.00049217,30480.0,30479.0,1.79827465]
[1688311850546,0.00049217,30480.0,30479.0,1.76356414]
[1688311850759,0.00049217,30480.0,30479.0,1.81795965]
[1688311850959,0.00049217,30480.0,30479.0,1.76356414]
[1688311852155,0.03709236,30480.0,30479.0,1.019685]
[1688311852748,0.05594181,30480.0,30479.0,1.03791469]
[1688311852949,0.05594181,30480.0,30479.0,0.019685]
[1688311853744,0.05594181,30480.0,30477.0,1.395916]
[1688311853959,0.364586,30478.0,30475.0,1.0]
[1688311854142,0.01234207,30477.0,30475.0,1.0]
[1688311854344,0.019687,30476.0,30475.0,1.01822969]
[1688311854550,0.019687,30476.0,30475.0,1.03707914]
[1688311854749,0.03202901,30476.0,30475.0,1.03707914]
[1688311855148,0.05087846,30476.0,30474.0,1.38098117]
[1688311855475,0.05087846,30476.0,30474.0,0.00049217]
[1688311855476,0.3467,30475.0,30474.0,0.00049217]
[1688311855657,0.02879939,30475.0,30474.0,0.00049217]
[1688311855845,0.04764884,30475.0,30474.0,0.00049217]
[1688311856252,0.39434884,30475.0,30474.0,0.00049217]
[1688311856940,0.41257853,30475.0,30474.0,0.00049217]
[1688311859143,0.41257853,30475.0,30469.0,1.0]
[1688311859144,0.37549939,30475.0,30469.0,1.0]
[1688311859355,0.3437,30471.0,30466.0,0.019694]
[1688311859579,0.3608,30469.0,30466.0,0.019694]
[1688311859757,0.019693,30468.0,30466.0,0.019694]
[1688311859946,0.019693,30468.0,30462.0,0.049241]
[1688311859947,0.03707914,30467.0,30462.0,0.049241]
[1688311860152,0.019694,30466.0,30463.0,0.019696]
[1688311860484,0.36492969,30465.0,30461.0,1.00049238]
[1688311860668,0.02429104,30464.0,30462.0,0.3467]
[1688311860852,0.0066,30462.0,30461.0,0.00049238]
[1688311861083,0.0066,30462.0,30456.0,0.0197]
[1688311861084,0.019697,30461.0,30456.0,0.0197]
[1688311861282,0.3608,30459.0,30455.0,0.02666613]
[1688311861579,0.05677814,30458.0,30454.0,0.3467]
[1688311861765,0.019699,30458.0,30454.0,0.3467]
[1688311861953,0.03707914,30457.0,30454.0,0.366402]
[1688311862149,0.019699,30458.0,30454.0,0.366402]
[1688311862352,0.019699,30458.0,30456.0,1.0197]
[1688311862545,0.019699,30458.0,30457.0,0.3467]
[1688311862755,0.019699,30458.0,30457.0,0.3664]